fUST/lending_fUST_20251125
["ID","MTS","AMOUNT","RATE_DAILY","PERIOD"]
[394886032,1764070151232,-500.0,5.61e-05,2]
[394886033,1764070151252,-500.0,5.61e-05,2]
[394886034,1764070151277,-500.0,5.61e-05,2]
[394886035,1764070151301,-258.13893565,5.61e-05,2]
[394886036,1764070151324,-500.0,5.61e-05,2]
[394886037,1764070151347,-500.0,5.61e-05,2]
[394886038,1764070151369,-500.0,5.61e-05,2]
[394886039,1764070151391,-500.0,5.61e-05,2]
[394886040,1764070151412,-500.0,5.61e-05,2]
[394886041,1764070151434,-500.0,5.61e-05,2]
[394886042,1764070151454,-500.0,5.61e-05,2]
[394886043,1764070151473,-500.0,5.61e-05,2]
[394886044,1764070151502,-1498.68366586,5.61e-05,2]
[394886045,1764070151524,-574.64000001,5.61e-05,2]
[394886046,1764070151547,-1229.92595894,5.61e-05,2]
[394886078,1764070237747,-250.0,5.608e-05,2]
[394886079,1764070237758,-250.0,5.608e-05,2]
[394886080,1764070237767,-2183.94122408,5.608e-05,2]
[394886082,1764070237777,-500.0,5.609e-05,2]
[394886084,1764070237787,-500.0,5.609e-05,2]
[394886085,1764070237796,-23.46868897,5.609e-05,2]
[394886125,1764070240925,-3e-08,5.609e-05,2]
[394886238,1764070448096,-216.16100644,5.552e-05,2]
[394886239,1764070453185,-83.83899356,5.552e-05,2]
[394886240,1764070453207,-267.22917827,5.607e-05,2]
[394886241,1764070454675,-32.77082173,5.607e-05,2]
[394886242,1764070454698,-344.77445832,5.608e-05,2]
[394886243,1764070456160,-155.22554168,5.608e-05,2]
[394886244,1764070456182,-119.44811088,5.608e-05,2]
[394886245,1764070459917,-159.59747866,5.608e-05,2]
[394886246,1764070463483,-220.95441046,5.608e-05,2]
[394886247,1764070463506,-34.62921096,5.608e-05,2]
[394886248,1764070466084,-206.17838785,5.608e-05,2]
[394886249,1764070466111,-277.36409766,5.608e-05,2]
[394886250,1764070468600,-248.33954225,5.608e-05,2]
[394886251,1764070468624,-51.66045775,5.608e-05,2]
[394886252,1764070471327,-123.29954225,5.608e-05,2]
[394886253,1764070471355,-119.52939943,5.608e-05,2]
[394886254,1764070473966,-213.32974665,5.608e-05,2]
[394886255,1764070475332,-192.84449383,5.608e-05,2]
[394886256,1764070475360,-29.88787898,5.608e-05,2]
[394886257,1764070478593,-240.15663248,5.608e-05,2]
[394886258,1764070482055,-195.48687758,5.551e-05,2]
[394886259,1764070484043,-248.86279623,5.551e-05,2]
[394886260,1764070486168,-156.81564143,5.551e-05,2]
[394886261,1764070489309,300.0,5.495e-05,2]
[394886262,1764070490669,-591.48728285,5.551e-05,2]
[394886263,1764070494710,-255.42937001,5.551e-05,2]
[394886264,1764070497558,248.86279623,5.495e-05,2]
[394886265,1764070499039,-206.68240134,5.551e-05,2]
[394886266,1764070500522,-163.44,5.551e-05,2]
[394886267,1764070502712,300.0,5.55e-05,2]
[394886268,1764070503555,-152.67237092,5.551e-05,2]
[394886269,1764070503934,1060.0,5.55e-05,2]
[394886270,1764070505740,-365.3933981,5.551e-05,2]
[394886271,1764070509900,-208.94101594,5.551e-05,2]
[394886272,1764070522306,-176.39025782,5.551e-05,2]
[394886273,1764070678230,9208.82565639,5.495e-05,2]
[394886274,1764070686021,316.8507471,5.522e-05,2]
[394886275,1764070697869,9683.1592529,5.508e-05,2]
[394886276,1764070697894,10000.01,5.508e-05,2]
[394886277,1764070697924,6595.32765669,5.508e-05,2]
[394886280,1764070897389,1764.61246288,5.398e-05,2]
[394886281,1764071032370,-313.69268593,5.482e-05,2]
[394886282,1764071034309,-223.30748358,5.482e-05,2]
[394886283,1764071037359,-163.49035014,5.482e-05,2]
[394886284,1764071040742,-209.84813309,5.482e-05,2]
[394886285,1764071042422,-289.66134726,5.482e-05,2]
[394886286,1764071042450,-7.36673353,5.482e-05,2]
[394886287,1764071042625,158.89364341,5.393e-05,2]
[394886288,1764071045613,-300.0,5.482e-05,2]
[394886289,1764071045635,-86.18869249,5.482e-05,2]
[394886290,1764071047198,-209.26628569,5.482e-05,2]
[394886291,1764071049287,-14.02903539,5.482e-05,2]
[394886292,1764071049310,-203.41591538,5.483e-05,2]
[394886293,1764071051307,-232.50700278,5.483e-05,2]
[394886294,1764071052715,-64.07708184,5.483e-05,2]
[394886295,1764071052735,-199.19201336,5.483e-05,2]
[394886296,1764071054237,-165.12552179,5.483e-05,2]
[394886299,1764071074393,-135.68246485,5.483e-05,2]
[394886300,1764071074413,-181.6532127,5.483e-05,2]
[394886301,1764071075732,-170.59340552,5.483e-05,2]
[394886302,1764071077360,-168.1558384,5.483e-05,2]
[394886303,1764071077383,-118.9940765,5.483e-05,2]
[394886304,1764071080078,-154.55999111,5.483e-05,2]
[394886305,1764071082012,-157.69450115,5.483e-05,2]
[394886306,1764071084250,-68.75143124,5.483e-05,2]
[394886307,1764071084271,-296.92495999,5.483e-05,2]
[394886308,1764071086378,-203.07504001,5.483e-05,2]
[394886309,1764071086398,-12.27407614,5.483e-05,2]
[394886310,1764071088349,-187.05912285,5.483e-05,2]
[394886311,1764071088645,3830.455226,0.0001111,3]
[394886312,1764071089862,-300.66680101,5.483e-05,2]
[394886313,1764071089882,-129.89166953,5.483e-05,2]
[394886314,1764071107372,-189.91196234,5.483e-05,2]
[394886315,1764071109556,-188.03657448,5.483e-05,2]
[394886316,1764071112258,-122.05146318,5.483e-05,2]
[394886317,1764071112279,-175.27465571,5.483e-05,2]
[394886318,1764071114750,-317.33567755,5.483e-05,2]
[394886319,1764071116262,-326.70306865,5.504e-05,2]
[394886320,1764071119378,-14.29693135,5.504e-05,2]
[394886321,1764071119407,-161.07220007,5.505e-05,2]
[394886322,1764071120838,-26.82775988,5.505e-05,2]
[394886323,1764071120861,-214.39293793,5.505e-05,2]
[394886324,1764071122630,-196.85436886,5.505e-05,2]
[394886325,1764071124715,-88.75269321,5.505e-05,2]
[394886326,1764071124737,-117.92970813,5.505e-05,2]
[394886327,1764071126699,-252.83679458,5.505e-05,2]
[394886328,1764071128165,-129.23349729,5.505e-05,2]
[394886329,1764071128186,-42.16506036,5.505e-05,2]
[394886330,1764071130239,-148.38512014,5.505e-05,2]
[394886331,1764071130266,-36.19239727,5.505e-05,2]
[394886332,1764071134400,-191.97854157,5.505e-05,2]
[394886333,1764071136416,-271.82906116,5.505e-05,2]
[394886334,1764071136441,-28.17093884,5.505e-05,2]
[394886335,1764071139520,-170.74272771,5.505e-05,2]
[394886336,1764071141653,-182.77433259,5.505e-05,2]
[394886337,1764071144880,-118.31200086,5.505e-05,2]
[394886338,1764071144911,-57.41283969,5.505e-05,2]
[394886339,1764071147414,-263.00907554,5.505e-05,2]
[394886340,1764071150086,-167.07545631,5.505e-05,2]
[394886341,1764071152057,-12.50262846,5.505e-05,2]
[394886342,1764071152249,-257.23820463,5.505e-05,2]
[394886343,1764071153638,-242.76179537,5.505e-05,2]
[394886344,1764071153664,-41.73207422,5.505e-05,2]
[394886345,1764071157050,-291.64286549,5.505e-05,2]
[394886346,1764071159791,-166.62506029,5.505e-05,2]
[394886347,1764071159819,-16.90923887,5.505e-05,2]
[394886348,1764071161267,-234.92066678,5.505e-05,2]
[394886349,1764071162756,-248.17009435,5.505e-05,2]
[394886350,1764071162782,-7.39411489,5.505e-05,2]
[394886351,1764071164864,-300.0,5.505e-05,2]
[394886352,1764071166719,2346.51836233,5.45e-05,2]
[394886353,1764071168421,-192.60588511,5.505e-05,2]
[394886354,1764071168448,-203.89487823,5.505e-05,2]
[394886355,1764071170442,-206.57900651,5.505e-05,2]
[394886356,1764071173013,-89.52611526,5.505e-05,2]
[394886357,1764071173038,-176.47388474,5.505e-05,2]
[394886358,1764071175491,-234.05572851,5.505e-05,2]
[394886359,1764071180422,-89.47038675,5.505e-05,2]
[394886360,1764071180450,-123.48002982,5.505e-05,2]
[394886361,1764071183169,-264.7672137,5.505e-05,2]
[394886362,1764071185760,-111.75275648,5.505e-05,2]
[394886363,1764071185793,-66.52758244,5.505e-05,2]
[394886364,1764071187787,-300.0,5.505e-05,2]
[394886365,1764071189268,-133.47241756,5.505e-05,2]
[394886366,1764071189295,-69.48087587,5.505e-05,2]
[394886367,1764071189500,2059.13346755,5.45e-05,2]
[394886368,1764071192595,-220.54876471,5.505e-05,2]
[394886369,1764071202130,-209.97035942,5.505e-05,2]
[394886370,1764071202154,-38.4104699,5.505e-05,2]
[394886371,1764071211939,502.95329343,5.45e-05,2]
[394886372,1764071222881,300.0,5.504e-05,2]
[394886373,1764071250619,162.76450222,5.504e-05,2]
[394886374,1764071253586,1088.09561203,5.505e-05,2]
[394886375,1764071254266,519.3709294,5.504e-05,2]
[394886376,1764071254895,519.3709294,5.504e-05,2]
[394886377,1764071255203,519.3709294,5.504e-05,2]
[394886378,1764071255264,519.3709294,5.504e-05,2]
[394886379,1764071255314,519.3709294,5.504e-05,2]
[394886380,1764071255387,519.3709294,5.504e-05,2]
[394886381,1764071255447,424.31918604,5.504e-05,2]
[394886382,1764071255473,95.05174336,5.504e-05,2]
[394886383,1764071255524,519.3709294,5.504e-05,2]
[394886384,1764071255580,519.3709294,5.504e-05,2]
[394886385,1764071255629,519.3709294,5.504e-05,2]
[394886386,1764071255683,519.3709294,5.504e-05,2]
[394886387,1764071255728,519.3709294,5.504e-05,2]
[394886388,1764071255975,519.3709294,5.504e-05,2]
[394886389,1764071256029,519.3709294,5.504e-05,2]
[394886390,1764071256080,519.3709294,5.504e-05,2]
[394886391,1764071256137,519.3709294,5.504e-05,2]
[394886392,1764071256187,519.3709294,5.504e-05,2]
[394886393,1764071256231,519.3709294,5.504e-05,2]
[394886394,1764071256282,519.3709294,5.504e-05,2]
[394886395,1764071256321,519.3709294,5.504e-05,2]
[394886396,1764071256374,519.3709294,5.504e-05,2]
[394886397,1764071256426,519.3709294,5.504e-05,2]
[394886398,1764071256460,519.3709294,5.504e-05,2]
[394886399,1764071256506,519.3709294,5.504e-05,2]
[394886400,1764071256552,519.3709294,5.504e-05,2]
[394886401,1764071256592,519.3709294,5.504e-05,2]
[394886402,1764071256651,36.91059804,5.504e-05,2]
[394886403,1764071256677,482.46033136,5.504e-05,2]
[394886404,1764071256722,519.3709294,5.504e-05,2]
[394886405,1764071256773,519.3709294,5.504e-05,2]
[394886406,1764071256831,519.3709294,5.504e-05,2]
[394886407,1764071257159,519.3709294,5.504e-05,2]
[394886408,1764071257198,519.3709294,5.504e-05,2]
[394886409,1764071257291,519.3709294,5.504e-05,2]
[394886410,1764071257373,519.3709294,5.504e-05,2]
[394886411,1764071257417,519.3709294,5.504e-05,2]
[394886412,1764071257464,519.3709294,5.504e-05,2]
[394886413,1764071257504,519.3709294,5.504e-05,2]
[394886414,1764071257537,519.3709294,5.504e-05,2]
[394886415,1764071257585,519.3709294,5.504e-05,2]
[394886416,1764071257633,519.3709294,5.504e-05,2]
[394886417,1764071257684,519.3709294,5.504e-05,2]
[394886418,1764071257752,519.3709294,5.504e-05,2]
[394886419,1764071257795,519.3709294,5.504e-05,2]
[394886420,1764071257833,519.3709294,5.504e-05,2]
[394886421,1764071257878,519.3709294,5.504e-05,2]
[394886422,1764071257924,168.87293944,5.504e-05,2]
[394886423,1764071257949,350.49798996,5.504e-05,2]
[394886424,1764071257998,519.3709294,5.504e-05,2]
[394886425,1764071258040,519.3709294,5.504e-05,2]
[394886426,1764071258089,519.3709294,5.504e-05,2]
[394886427,1764071258142,519.3709294,5.504e-05,2]
[394886428,1764071258391,519.3709294,5.504e-05,2]
[394886429,1764071258440,519.3709294,5.504e-05,2]
[394886430,1764071258484,519.3709294,5.504e-05,2]
[394886431,1764071258531,519.3709294,5.504e-05,2]
[394886432,1764071258584,519.3709294,5.504e-05,2]
[394886433,1764071258634,519.3709294,5.504e-05,2]
[394886434,1764071258675,519.3709294,5.504e-05,2]
[394886435,1764071258721,519.3709294,5.504e-05,2]
[394886436,1764071258756,519.3709294,5.504e-05,2]
[394886437,1764071258822,519.3709294,5.504e-05,2]
[394886438,1764071258866,519.3709294,5.504e-05,2]
[394886439,1764071258925,519.3709294,5.504e-05,2]
[394886440,1764071258964,519.3709294,5.504e-05,2]
[394886441,1764071261558,-500.0,5.507e-05,2]
[394886442,1764071268878,1609.63680899,5.504e-05,2]
[394886443,1764071268939,1609.63680899,5.504e-05,2]
[394886444,1764071268997,1609.63680899,5.504e-05,2]
[394886445,1764071269058,1609.63680899,5.504e-05,2]
[394886446,1764071269103,1609.63680899,5.504e-05,2]
[394886447,1764071269153,951.82595505,5.504e-05,2]
[394886448,1764071269182,657.81085394,5.504e-05,2]
[394886449,1764071269234,1609.63680899,5.504e-05,2]
[394886450,1764071269278,1609.63680899,5.504e-05,2]
[394886451,1764071269324,1609.63680899,5.504e-05,2]
[394886452,1764071269373,1609.63680899,5.504e-05,2]
[394886453,1764071269422,1609.63680899,5.504e-05,2]
[394886454,1764071269461,1294.01510111,5.504e-05,2]
[394886455,1764071269486,315.62170788,5.504e-05,2]
[394886456,1764071269541,1609.63680899,5.504e-05,2]
[394886457,1764071269587,1609.63680899,5.504e-05,2]
[394886458,1764071269639,1609.63680899,5.504e-05,2]
[394886459,1764071269683,1609.63680899,5.504e-05,2]
[394886460,1764071269731,1609.63680899,5.504e-05,2]
[394886461,1764071269770,1609.63680899,5.504e-05,2]
[394886462,1764071269817,26.56743818,5.504e-05,2]
[394886463,1764071269847,1583.06937081,5.504e-05,2]
[394886464,1764071269880,1609.63680899,5.504e-05,2]
[394886465,1764071269925,1609.63680899,5.504e-05,2]
[394886466,1764071269969,1609.63680899,5.504e-05,2]
[394886467,1764071270016,1609.63680899,5.504e-05,2]
[394886468,1764071270068,1609.63680899,5.504e-05,2]
[394886469,1764071270113,368.75658424,5.504e-05,2]
[394886470,1764071270138,1240.88022475,5.504e-05,2]
[394886471,1764071270184,1609.63680899,5.504e-05,2]
[394886472,1764071270221,1609.63680899,5.504e-05,2]
[394886473,1764071270266,1609.63680899,5.504e-05,2]
[394886474,1764071270313,1609.63680899,5.504e-05,2]
[394886475,1764071270364,1609.63680899,5.504e-05,2]
[394886476,1764071270407,710.9457303,5.504e-05,2]
[394886477,1764071270433,898.69107869,5.504e-05,2]
[394886478,1764071270476,1609.63680899,5.504e-05,2]
[394886479,1764071270511,1609.63680899,5.504e-05,2]
[394886480,1764071270559,1609.63680899,5.504e-05,2]
[394886481,1764071270602,1609.63680899,5.504e-05,2]
[394886482,1764071270646,1609.63680899,5.504e-05,2]
[394886483,1764071270684,1053.13487636,5.504e-05,2]
[394886484,1764071270707,556.50193263,5.504e-05,2]
[394886485,1764071270750,1609.63680899,5.504e-05,2]
[394886486,1764071270794,1609.63680899,5.504e-05,2]
[394886487,1764071270840,1609.63680899,5.504e-05,2]
[394886488,1764071270869,1200.0,5.507e-05,2]
[394886489,1764071271093,1609.63680899,5.504e-05,2]
[394886490,1764071271129,1609.63680899,5.504e-05,2]
[394886491,1764071271165,195.32402242,5.504e-05,2]
[394886492,1764071271190,1414.31278657,5.504e-05,2]
[394886493,1764071271271,1609.63680899,5.504e-05,2]
[394886494,1764071271335,1609.63680899,5.504e-05,2]
[394886495,1764071271379,1609.63680899,5.504e-05,2]
[394886496,1764071271412,1609.63680899,5.504e-05,2]
[394886497,1764071271455,1609.63680899,5.504e-05,2]
[394886498,1764071271488,537.51316848,5.504e-05,2]
[394886499,1764071282466,300.0,5.503e-05,2]
[394886501,1764071302853,-388.96950641,5.504e-05,2]
[394886502,1764071304854,-173.92572809,5.504e-05,2]
[394886503,1764071307488,-304.99988771,5.508e-05,2]
[394886504,1764071320836,-174.04848096,5.508e-05,2]
[394886505,1764071323458,-163.77616724,5.508e-05,2]
[394886506,1764071326111,-245.2777063,5.508e-05,2]
[394886507,1764071330151,-201.08534706,5.508e-05,2]
[394886508,1764071332583,-176.36567888,5.508e-05,2]
[394886509,1764071335961,-430.82174833,5.508e-05,2]
[394886510,1764071338106,-239.68371052,5.508e-05,2]
[394886511,1764071342314,300.0,5.507e-05,2]
[394886512,1764071343397,1466.52862945,5.453e-05,2]
[394886513,1764071361288,-343.23838953,5.508e-05,2]
[394886514,1764071365040,-189.28784678,5.508e-05,2]
[394886515,1764071367322,-192.81257279,5.508e-05,2]
[394886516,1764071369653,-310.71215322,5.508e-05,2]
[394886517,1764071371734,-8644.04436614,5.508e-05,2]
[394886518,1764071371782,-10000.01,5.508e-05,2]
[394886519,1764071371795,-10000.01,5.508e-05,2]
[394886520,1764071373795,-10000.01,5.508e-05,2]
[394886521,1764071373923,-10000.01,5.508e-05,2]
[394886522,1764071374045,-10000.01,5.508e-05,2]
[394886523,1764071374157,-10000.01,5.508e-05,2]
[394886524,1764071374301,-10000.01,5.508e-05,2]
[394886525,1764071374446,-10000.01,5.508e-05,2]
[394886526,1764071376921,-10000.01,5.508e-05,2]
[394886527,1764071377053,-10000.01,5.508e-05,2]
[394886528,1764071377161,-10000.01,5.508e-05,2]
[394886529,1764071382251,297.02808079,5.453e-05,2]
[394886530,1764071390152,2548.54031784,5.453e-05,2]
[394886531,1764071398246,163.44,5.453e-05,2]
[394886532,1764071402542,300.0,5.507e-05,2]
[394886533,1764071403959,1200.0,5.507e-05,2]
[394886534,1764071406063,300.0,5.452e-05,2]
[394886535,1764071409839,666.0,0.0001111,3]
[394886536,1764071410083,2000.0,0.0001111,3]
[394886537,1764071410455,666.0,0.0001111,3]
[394886538,1764071410695,2000.0,0.0001111,3]
[394886539,1764071411069,666.0,0.0001111,3]
[394886540,1764071411672,666.0,0.0001111,3]
[394886541,1764071412104,168.3888056,0.0001111,3]
[394886542,1764071412139,151.0,0.0001111,3]
[394886543,1764071412302,666.0,0.0001111,3]
[394886544,1764071412504,168.3888056,0.0001111,3]
[394886545,1764071413026,151.0,0.0001111,3]
[394886546,1764071413066,174.61919141,0.0001111,3]
[394886547,1764071413129,666.0,0.0001111,3]
[394886548,1764071413175,151.0,0.0001111,3]
[394886549,1764071413222,175.20883888,0.0001111,3]
[394886550,1764071413358,250.0,0.0001111,3]
[394886551,1764071413422,181.08010149,0.0001111,3]
[394886552,1764071413567,666.0,0.0001111,3]
[394886553,1764071413686,151.0,0.0001111,3]
[394886554,1764071414019,250.0,0.0001111,3]
[394886555,1764071414069,187.78006525,0.0001111,3]
[394886556,1764071414645,666.0,0.0001111,3]
[394886557,1764071414689,194.72792766,0.0001111,3]
[394886558,1764071415298,666.0,0.0001111,3]
[394886559,1764071415334,201.93286099,0.0001111,3]
[394886560,1764071415942,666.0,0.0001111,3]
[394886561,1764071415992,209.40437684,0.0001111,3]
[394886562,1764071416558,666.0,0.0001111,3]
[394886563,1764071416615,217.15233878,0.0001111,3]
[394886564,1764071417411,666.0,0.0001111,3]
[394886565,1764071417454,225.18697532,0.0001111,3]
[394886566,1764071417917,233.51889341,0.0001111,3]
[394886567,1764071418237,250.0,0.0001111,3]
[394886568,1764071418318,666.0,0.0001111,3]
[394886569,1764071418551,242.15909246,0.0001111,3]
[394886570,1764071418869,250.00000003,0.0001111,3]
[394886571,1764071419027,666.0,0.0001111,3]
[394886572,1764071419188,251.11897888,0.0001111,3]
[394886573,1764071419856,666.0,0.0001111,3]
[394886574,1764071420009,260.4103811,0.0001111,3]
[394886575,1764071420498,666.0,0.0001111,3]
[394886576,1764071420647,270.0455652,0.0001111,3]
[394886577,1764071421143,666.0,0.0001111,3]
[394886578,1764071421309,280.03725112,0.0001111,3]
[394886579,1764071421926,290.39862941,0.0001111,3]
[394886580,1764071422735,301.1433787,0.0001111,3]
[394886581,1764071423411,151.0,0.0001111,3]
[394886582,1764071424018,156.587,0.0001111,3]
[394886583,1764071424625,304.2411755,0.0001111,3]
[394886584,1764071428451,2854.53912018,5.453e-05,2]
[394886585,1764071429051,250.0,0.0001111,3]
[394886586,1764071429674,250.00000003,0.0001111,3]
[394886587,1764071431143,151.0,0.0001111,3]
[394886612,1764071431783,151.0,0.0001111,3]
[394886623,1764071431873,-489.0,5.508e-05,2]
[394886625,1764071431884,-506.43069447,5.508e-05,2]
[394886697,1764071432466,151.0,0.0001111,3]
[394886709,1764071433118,151.0,0.0001111,3]
[394886710,1764071433786,151.0,0.0001111,3]
[394886711,1764071434404,151.0,0.0001111,3]
[394886712,1764071435016,151.0,0.0001111,3]
[394886713,1764071435671,151.0,0.0001111,3]
[394886714,1764071436287,151.0,0.0001111,3]
[394886715,1764071436936,151.0,0.0001111,3]
[394886718,1764071437585,151.0,0.0001111,3]
[394886727,1764071438294,151.0,0.0001111,3]
[394886728,1764071438807,151.0,0.0001111,3]
[394886729,1764071439642,151.0,0.0001111,3]
[394886806,1764071441467,-3e-08,5.508e-05,2]
[394886807,1764071441502,151.0,0.0001111,3]
[394886808,1764071441598,151.0,0.0001111,3]
[394886809,1764071441767,151.0,0.0001111,3]
[394886810,1764071442036,151.0,0.0001111,3]
[394886811,1764071442697,151.0,0.0001111,3]
[394886817,1764071443318,151.0,0.0001111,3]
[394886819,1764071444533,-570.14621066,5.508e-05,2]
[394886820,1764071445151,-539.8407437,5.508e-05,2]
[394886821,1764071445161,-9587.78520266,5.508e-05,2]
[394886823,1764071458465,7336.45248119,5.453e-05,2]
[394886824,1764071458498,7263.93954276,5.453e-05,2]
[394886825,1764071461728,792.35,1e-05,2]
[394886826,1764071462013,792.35,1e-05,2]
[394886827,1764071462286,792.35,1.1e-05,2]
[394886828,1764071462578,792.35,1.1e-05,2]
[394886829,1764071462968,792.35,1.2e-05,2]
[394886830,1764071463243,792.35,1.2e-05,2]
[394886831,1764071463594,792.35,1.3e-05,2]
[394886832,1764071464002,792.35,1.3e-05,2]
[394886833,1764071464467,792.35,1.4e-05,2]
[394886834,1764071464668,604.91045724,1.4e-05,2]
[394886835,1764071464696,187.43954276,1.4e-05,2]
[394886836,1764071465128,792.35,1.5e-05,2]
[394886837,1764071465589,792.35,1.5e-05,2]
[394886838,1764071465740,792.35,1.6e-05,2]
[394886839,1764071466012,792.35,1.6e-05,2]
[394886840,1764071466444,792.35,1.7e-05,2]
[394886841,1764071466720,792.35,1.7e-05,2]
[394886842,1764071467065,792.35,1.8e-05,2]
[394886843,1764071467409,792.35,1.8e-05,2]
[394886844,1764071467755,792.35,1.9e-05,2]
[394886845,1764071468078,792.35,1.9e-05,2]
[394886846,1764071468379,792.35,2e-05,2]
[394886847,1764071468762,792.35,2e-05,2]
[394886848,1764071469060,792.35,2.1e-05,2]
[394886849,1764071469368,792.35,2.1e-05,2]
[394886850,1764071469645,792.35,2.2e-05,2]
[394886851,1764071469969,792.35,2.2e-05,2]
[394886852,1764071470342,792.35,2.3e-05,2]
[394886853,1764071470578,792.35,2.3e-05,2]
[394886854,1764071471101,550.26045724,2.4e-05,2]
[394886855,1764071471132,242.08954276,2.4e-05,2]
[394886856,1764071471225,792.35,2.4e-05,2]
[394886857,1764071471567,792.35,2.5e-05,2]
[394886858,1764071471869,792.35,2.5e-05,2]
[394886859,1764071472193,792.35,2.6e-05,2]
[394886860,1764071472496,792.35,2.6e-05,2]
[394886861,1764071472942,792.35,2.7e-05,2]
[394886862,1764071473294,792.35,2.7e-05,2]
[394886863,1764071473755,792.35,2.8e-05,2]
[394886864,1764071474303,792.35,2.8e-05,2]
[394886865,1764071475059,792.35,2.9e-05,2]
[394886866,1764071475115,792.35,2.376e-05,2]
[394886867,1764071475240,792.35,2.9e-05,2]
[394886868,1764071475655,792.35,3e-05,2]
[394886869,1764071476242,792.35,3e-05,2]
[394886870,1764071476308,792.35,3.1e-05,2]
[394886871,1764071476561,792.35,3.1e-05,2]
[394886872,1764071476838,792.35,3.2e-05,2]
[394886873,1764071477117,792.35,3.2e-05,2]
[394886874,1764071477408,495.61045724,3.3e-05,2]
[394886875,1764071477436,296.73954276,3.3e-05,2]
[394886876,1764071477683,792.35,3.3e-05,2]
[394886877,1764071478641,792.35,3.4e-05,2]
[394886878,1764071482694,-155.73526175,5.407e-05,2]
[394886879,1764071512406,-215.15572606,5.353e-05,2]
[394886880,1764071513861,-272.22970046,5.353e-05,2]
[394886881,1764071518135,-227.84698348,5.353e-05,2]
[394886882,1764071519593,-210.04305395,5.353e-05,2]
[394886883,1764071521051,-153.59194599,5.353e-05,2]
[394886884,1764071521856,158.43,1e-05,2]
[394886885,1764071522001,158.43,1.6e-05,2]
[394886886,1764071522239,158.43,2.2e-05,2]
[394886887,1764071522567,-13.46352913,5.353e-05,2]
[394886888,1764071522588,-206.68240134,5.404e-05,2]
[394886889,1764071522612,-23.73595617,5.407e-05,2]
[394886890,1764071522655,158.43,2.8e-05,2]
[394886891,1764071522960,158.43,3.4e-05,2]
[394886892,1764071525394,-289.95694602,5.407e-05,2]
[394886893,1764071527803,-250.86094477,5.353e-05,2]
[394886894,1764071530631,-299.96698545,5.353e-05,2]
[394886895,1764071533105,-270.6481367,5.353e-05,2]
[394886896,1764071536413,-247.11891598,5.353e-05,2]
[394886897,1764071536434,-228.58533238,5.407e-05,2]
[394886898,1764071538995,-183.34281655,5.407e-05,2]
[394886899,1764071541539,-347.89351051,5.407e-05,2]
[394886900,1764071545097,-366.70988795,5.353e-05,2]
[394886901,1764071545117,-18.81637744,5.407e-05,2]
[394886902,1764071545139,-18.14997806,5.452e-05,2]
[394886903,1764071547624,-281.85002194,5.452e-05,2]
[394886904,1764071547646,-296.84299849,5.506e-05,2]
[394886905,1764071549479,-3.15700151,5.506e-05,2]
[394886906,1764071549500,-150.83132771,5.507e-05,2]
[394886907,1764071550825,156.352817,0.0001111,3]
[394886908,1764071551090,-199.0885471,5.397e-05,2]
[394886909,1764071553689,-82.76147484,5.397e-05,2]
[394886910,1764071553712,-88.32741538,5.507e-05,2]
[394886911,1764071555639,-260.84125691,5.507e-05,2]
[394886912,1764071555660,-39.15874309,5.508e-05,2]
[394886913,1764071557124,-331.35058595,5.508e-05,2]
[394886914,1764071558598,-258.95475805,5.452e-05,2]
[394886915,1764071561220,-1.88649886,5.452e-05,2]
[394886916,1764071561241,-339.15874309,5.508e-05,2]
[394886917,1764071563719,-188.92525109,5.508e-05,2]
[394886918,1764071566261,-200.0,5.453e-05,2]
[394886919,1764071567478,40318.5,0.0002,30]
[394886920,1764071568281,-210.88892161,5.453e-05,2]
[394886921,1764071570851,-300.0,5.453e-05,2]
[394886922,1764071573194,-220.49547666,5.453e-05,2]
[394886923,1764071574654,-247.37443072,5.398e-05,2]
[394886924,1764071576723,-223.03852216,5.398e-05,2]
[394886925,1764071578924,-217.02223763,5.398e-05,2]
[394886926,1764071580882,-188.92525109,5.398e-05,2]
[394886927,1764071583060,-376.85087449,5.344e-05,2]
[394886928,1764071585620,-176.22626387,5.344e-05,2]
[394886929,1764071587104,-303.75263424,5.344e-05,2]
[394886930,1764071589066,-270.94374857,5.344e-05,2]